[Event "*** SCC Grand Prix: Titled Tuesday Blitz"]
[Site "Chess.com"]
[Date "2020.10.06"]
[Round "4"]
[White "andresgv36"]
[Black "Blagorod"]
[Result "1-0"]
[WhiteElo "2412"]
[BlackElo "2175"]
[TimeControl "180+1"]
[EndTime "10:39:24 PDT"]
[Termination "andresgv36 won by resignation"]

1. d4 {[%clk 0:02:59.9]} 1... d5 {[%clk 0:03:00]} 2. Bf4 {[%clk 0:02:59.5]} 2...
Nf6 {[%clk 0:02:56.8]} 3. e3 {[%clk 0:02:59.7]} 3... e6 {[%clk 0:02:55.2]} 4.
Nf3 {[%clk 0:02:59.7]} 4... Bd6 {[%clk 0:02:55.5]} 5. Nbd2 {[%clk 0:02:58.7]}
5... O-O {[%clk 0:02:55.1]} 6. Bd3 {[%clk 0:02:58.1]} 6... h6 {[%clk 0:02:48.3]}
7. Ne5 {[%clk 0:02:49.5]} 7... c5 {[%clk 0:02:35.7]} 8. c3 {[%clk 0:02:47.7]}
8... c4 {[%clk 0:02:34.9]} 9. Bb1 {[%clk 0:02:41.9]} 9... g5 {[%clk 0:01:44.6]}
10. Bg3 {[%clk 0:02:32.5]} 10... Kg7 {[%clk 0:01:36.7]} 11. h4 {[%clk
0:02:22.4]} 11... Rh8 {[%clk 0:01:27.5]} 12. Qf3 {[%clk 0:01:44]} 12... Bxe5
{[%clk 0:01:15.5]} 13. Bxe5 {[%clk 0:01:33.6]} 13... Nd7 {[%clk 0:01:10.2]} 14.
Qg3 {[%clk 0:00:57.1]} 14... Nxe5 {[%clk 0:01:08.8]} 15. hxg5 {[%clk 0:00:54.2]}
15... hxg5 {[%clk 0:01:03.5]} 16. Rxh8 {[%clk 0:00:53.6]} 16... Qxh8 {[%clk
0:00:57]} 17. dxe5 {[%clk 0:00:49]} 17... Ne4 {[%clk 0:00:41.3]} 18. Bxe4 {[%clk
0:00:44.7]} 18... Qh1+ {[%clk 0:00:33.1]} 19. Nf1 {[%clk 0:00:43]} 19... dxe4
{[%clk 0:00:32.6]} 20. Qxg5+ {[%clk 0:00:36.9]} 20... Kf8 {[%clk 0:00:32.2]} 21.
Qd8+ {[%clk 0:00:25.5]} 21... Kg7 {[%clk 0:00:31.6]} 22. O-O-O {[%clk
0:00:24.4]} 22... b5 {[%clk 0:00:24.9]} 23. Qf6+ {[%clk 0:00:20.7]} 23... Kh7
{[%clk 0:00:23.2]} 24. Ng3 {[%clk 0:00:19.9]} 24... Qxg2 {[%clk 0:00:19.6]} 25.
Rh1+ {[%clk 0:00:20]} 25... Qxh1+ {[%clk 0:00:19.7]} 26. Nxh1 {[%clk 0:00:20.9]}
26... Ba6 {[%clk 0:00:18.6]} 27. Qxf7+ {[%clk 0:00:18.8]} 27... Kh6 {[%clk
0:00:18.9]} 28. Qxe6+ {[%clk 0:00:18.3]} 28... Kh5 {[%clk 0:00:19.2]} 29. Qxa6
{[%clk 0:00:17.6]} 29... Rd8 {[%clk 0:00:18.6]} 30. Ng3+ {[%clk 0:00:17.4]}
30... Kg4 {[%clk 0:00:18]} 31. Qg6+ {[%clk 0:00:16.4]} 31... Kh3 {[%clk
0:00:18.3]} 32. Qxe4 {[%clk 0:00:14.2]} 32... a5 {[%clk 0:00:16.6]} 33. e6
{[%clk 0:00:14.5]} 33... a4 {[%clk 0:00:15.9]} 34. e7 {[%clk 0:00:14.6]} 34...
Re8 {[%clk 0:00:16.3]} 35. Nf5 {[%clk 0:00:15.1]} 35... a3 {[%clk 0:00:15.6]}
36. Qf3+ {[%clk 0:00:14.8]} 36... Kh2 {[%clk 0:00:15.2]} 37. Qg3+ {[%clk
0:00:14.4]} 37... Kh1 {[%clk 0:00:15.3]} 38. Qg6 {[%clk 0:00:12.7]} 38... Rh8
{[%clk 0:00:12.6]} 39. Kd1 {[%clk 0:00:12.7]} 39... axb2 {[%clk 0:00:11.8]} 40.
Kc2 {[%clk 0:00:12.8]} 40... b1=Q+ {[%clk 0:00:11.5]} 41. Kxb1 {[%clk
0:00:12.8]} 41... b4 {[%clk 0:00:12]} 42. e8=Q {[%clk 0:00:12.2]} 42... Rxe8
{[%clk 0:00:11.2]} 43. Qxe8 {[%clk 0:00:12.6]} 43... bxc3 {[%clk 0:00:11.9]} 44.
Qg6 {[%clk 0:00:12.2]} 44... c2+ {[%clk 0:00:11.8]} 45. Kc1 {[%clk 0:00:12.7]}
45... c3 {[%clk 0:00:11.5]} 46. Nh4 {[%clk 0:00:11.7]} 1-0

[Event "*** SCC Grand Prix: Titled Tuesday Blitz"]
[Site "Chess.com"]
[Date "2020.10.06"]
[Round "4"]
[White "beto-betun"]
[Black "Butterfly"]
[Result "0-1"]
[WhiteElo "2157"]
[BlackElo "2411"]
[TimeControl "180+1"]
[EndTime "10:39:24 PDT"]
[Termination "Butterfly won by resignation"]

1. d4 {[%clk 0:03:00.9]} 1... Nf6 {[%clk 0:02:59]} 2. Nf3 {[%clk 0:03:00]} 2...
g6 {[%clk 0:02:59.4]} 3. c4 {[%clk 0:02:58.3]} 3... Bg7 {[%clk 0:02:59.8]} 4. g3
{[%clk 0:02:57.6]} 4... O-O {[%clk 0:02:59.7]} 5. Bg2 {[%clk 0:02:57.9]} 5... c5
{[%clk 0:03:00.2]} 6. O-O {[%clk 0:02:57.3]} 6... cxd4 {[%clk 0:02:57.7]} 7.
Nxd4 {[%clk 0:02:58.2]} 7... Nc6 {[%clk 0:02:58]} 8. Nc3 {[%clk 0:02:56.4]} 8...
d6 {[%clk 0:02:55.4]} 9. Nxc6 {[%clk 0:02:51.7]} 9... bxc6 {[%clk 0:02:56.3]}
10. Bxc6 {[%clk 0:02:52]} 10... Rb8 {[%clk 0:02:56.3]} 11. Qc2 {[%clk
0:02:35.8]} 11... Qc7 {[%clk 0:02:54]} 12. Nd5 {[%clk 0:02:27.7]} 12... Nxd5
{[%clk 0:02:49]} 13. Bxd5 {[%clk 0:02:28.6]} 13... Ba6 {[%clk 0:02:45.7]} 14.
Rb1 {[%clk 0:02:21.8]} 14... e6 {[%clk 0:02:43.2]} 15. Bf3 {[%clk 0:02:17.6]}
15... Qxc4 {[%clk 0:02:43]} 16. Qxc4 {[%clk 0:02:14.9]} 16... Bxc4 {[%clk
0:02:43.9]} 17. b3 {[%clk 0:02:14.6]} 17... Bb5 {[%clk 0:02:42.2]} 18. Be3
{[%clk 0:02:13]} 18... a5 {[%clk 0:02:39.6]} 19. Rfd1 {[%clk 0:02:12.9]} 19...
d5 {[%clk 0:02:38.9]} 20. Rdc1 {[%clk 0:02:07.5]} 20... Rfc8 {[%clk 0:02:35.1]}
21. Rxc8+ {[%clk 0:02:06.6]} 21... Rxc8 {[%clk 0:02:34.5]} 22. Rc1 {[%clk
0:02:05.8]} 22... Rxc1+ {[%clk 0:02:23.3]} 23. Bxc1 {[%clk 0:02:06.7]} 23... Bc3
{[%clk 0:02:22.2]} 24. Bh6 {[%clk 0:01:36.8]} 24... f5 {[%clk 0:02:14.9]} 25. h4
{[%clk 0:01:34.8]} 25... Kf7 {[%clk 0:02:12.3]} 26. g4 {[%clk 0:01:25.1]} 26...
Ke7 {[%clk 0:02:06.1]} 27. gxf5 {[%clk 0:01:24.3]} 27... gxf5 {[%clk 0:02:05.6]}
28. Kh2 {[%clk 0:01:20]} 28... Bc6 {[%clk 0:01:57]} 29. h5 {[%clk 0:01:09.8]}
29... e5 {[%clk 0:01:56.9]} 30. e3 {[%clk 0:01:03.5]} 30... Ke6 {[%clk
0:01:53.7]} 31. Bf8 {[%clk 0:00:59.2]} 31... Bb5 {[%clk 0:01:49.9]} 32. Bd1
{[%clk 0:00:50.3]} 32... d4 {[%clk 0:01:43.9]} 33. exd4 {[%clk 0:00:48]} 33...
exd4 {[%clk 0:01:42]} 34. Bh6 {[%clk 0:00:47.5]} 34... d3 {[%clk 0:01:38.9]} 35.
Kg3 {[%clk 0:00:44.2]} 35... Ke5 {[%clk 0:01:36.8]} 36. Kf3 {[%clk 0:00:44.6]}
36... Bd4 {[%clk 0:01:28.3]} 37. Bg7+ {[%clk 0:00:44.4]} 37... Kd5 {[%clk
0:01:27.9]} 38. Bh6 {[%clk 0:00:31.2]} 38... Bc6 {[%clk 0:01:20.9]} 39. Bd2
{[%clk 0:00:25.6]} 39... Kc5+ {[%clk 0:01:12.6]} 40. Kf4 {[%clk 0:00:22.2]}
40... Bxf2 {[%clk 0:01:11.6]} 41. Kxf5 {[%clk 0:00:22.7]} 41... Kb5 {[%clk
0:01:04.5]} 42. Kg5 {[%clk 0:00:17.9]} 42... Be4 {[%clk 0:00:59.8]} 43. Kf4
{[%clk 0:00:16.8]} 43... Bc6 {[%clk 0:00:58.2]} 44. Kg5 {[%clk 0:00:17.2]} 44...
Bc5 {[%clk 0:00:55.5]} 45. Kf4 {[%clk 0:00:14.9]} 45... Bd5 {[%clk 0:00:50.3]}
46. Ke5 {[%clk 0:00:11.6]} 46... Bg2 {[%clk 0:00:49]} 47. Kf4 {[%clk 0:00:10.6]}
47... Bf1 {[%clk 0:00:46.2]} 48. Ke5 {[%clk 0:00:09.1]} 48... Bf2 {[%clk
0:00:43.1]} 49. Ke4 {[%clk 0:00:07.8]} 49... Be2 {[%clk 0:00:43.1]} 50. Bxe2
{[%clk 0:00:04.4]} 50... dxe2 {[%clk 0:00:44]} 51. Kd3 {[%clk 0:00:04.5]} 51...
e1=Q {[%clk 0:00:43.4]} 52. Bxe1 {[%clk 0:00:05.4]} 52... Bxe1 {[%clk 0:00:44]}
53. Ke4 {[%clk 0:00:06.1]} 53... Kb4 {[%clk 0:00:40.2]} 54. Kf5 {[%clk 0:00:07]}
54... h6 {[%clk 0:00:39.2]} 55. Ke4 {[%clk 0:00:05.4]} 55... Ka3 {[%clk
0:00:37.4]} 56. Kd3 {[%clk 0:00:06.3]} 56... Kxa2 {[%clk 0:00:37.5]} 57. Kc4
{[%clk 0:00:06.9]} 57... Ka3 {[%clk 0:00:37.1]} 0-1

[Event "*** SCC Grand Prix: Titled Tuesday Blitz"]
[Site "Chess.com"]
[Date "2020.10.06"]
[Round "4"]
[White "Harry_Rakkel"]
[Black "PlotnikovPavel"]
[Result "1-0"]
[WhiteElo "2575"]
[BlackElo "2360"]
[TimeControl "180+1"]
[EndTime "10:39:25 PDT"]
[Termination "Harry_Rakkel won by checkmate"]

1. e4 {[%clk 0:03:00.9]} 1... c5 {[%clk 0:02:58.1]} 2. Nf3 {[%clk 0:02:56.7]}
2... Nc6 {[%clk 0:02:57.8]} 3. d4 {[%clk 0:02:57.2]} 3... cxd4 {[%clk 0:02:58]}
4. Nxd4 {[%clk 0:02:57.7]} 4... e5 {[%clk 0:02:58.1]} 5. Nb5 {[%clk 0:02:56.1]}
5... Nf6 {[%clk 0:02:57.4]} 6. N1c3 {[%clk 0:02:54.3]} 6... d6 {[%clk
0:02:57.7]} 7. Bg5 {[%clk 0:02:52.8]} 7... a6 {[%clk 0:02:57.5]} 8. Na3 {[%clk
0:02:53.3]} 8... b5 {[%clk 0:02:57.4]} 9. Nd5 {[%clk 0:02:53.4]} 9... Be7 {[%clk
0:02:57.9]} 10. Bxf6 {[%clk 0:02:53.5]} 10... Bxf6 {[%clk 0:02:57.8]} 11. c3
{[%clk 0:02:53.8]} 11... O-O {[%clk 0:02:57.9]} 12. Nc2 {[%clk 0:02:53.1]} 12...
Bg5 {[%clk 0:02:57.9]} 13. a4 {[%clk 0:02:52]} 13... bxa4 {[%clk 0:02:57.8]} 14.
Rxa4 {[%clk 0:02:52.5]} 14... a5 {[%clk 0:02:58.3]} 15. Bc4 {[%clk 0:02:52.2]}
15... Rb8 {[%clk 0:02:58.5]} 16. b3 {[%clk 0:02:51.8]} 16... Kh8 {[%clk
0:02:58.6]} 17. O-O {[%clk 0:02:51.2]} 17... f5 {[%clk 0:02:58.8]} 18. exf5
{[%clk 0:02:50.3]} 18... Bxf5 {[%clk 0:02:59.2]} 19. Nce3 {[%clk 0:02:48.7]}
19... Bd7 {[%clk 0:02:49.5]} 20. Ra2 {[%clk 0:02:47.5]} 20... Be6 {[%clk
0:02:28.3]} 21. Qd3 {[%clk 0:02:35]} 21... Qd7 {[%clk 0:02:16.3]} 22. Rd1 {[%clk
0:02:32]} 22... Qf7 {[%clk 0:02:13.5]} 23. Nf1 {[%clk 0:02:16.8]} 23... Qh5
{[%clk 0:01:55.3]} 24. Ng3 {[%clk 0:02:08]} 24... Qf7 {[%clk 0:01:40.4]} 25. Ne4
{[%clk 0:02:03.7]} 25... Be7 {[%clk 0:01:30.8]} 26. g3 {[%clk 0:01:47.9]} 26...
Rfd8 {[%clk 0:01:15.8]} 27. Qe3 {[%clk 0:01:46.1]} 27... h6 {[%clk 0:01:10]} 28.
Rdd2 {[%clk 0:01:28.9]} 28... Bf8 {[%clk 0:00:56.9]} 29. Qd3 {[%clk 0:01:17.8]}
29... Qg6 {[%clk 0:00:53]} 30. Qe3 {[%clk 0:01:01.8]} 30... Bf5 {[%clk
0:00:49.3]} 31. Re2 {[%clk 0:00:59.4]} 31... Ne7 {[%clk 0:00:37.1]} 32. Rxa5
{[%clk 0:00:51.6]} 32... Nxd5 {[%clk 0:00:30.8]} 33. Bxd5 {[%clk 0:00:49.6]}
33... Be7 {[%clk 0:00:28.1]} 34. b4 {[%clk 0:00:45]} 34... Rdc8 {[%clk
0:00:23.5]} 35. Ra6 {[%clk 0:00:37.2]} 35... Qh5 {[%clk 0:00:17.8]} 36. Nxd6
{[%clk 0:00:28.5]} 36... Rd8 {[%clk 0:00:16.5]} 37. Nf7+ {[%clk 0:00:25.4]}
37... Kh7 {[%clk 0:00:16.7]} 38. Nxd8 {[%clk 0:00:24.9]} 38... Rxd8 {[%clk
0:00:17.6]} 39. Be4 {[%clk 0:00:22.7]} 39... Rd1+ {[%clk 0:00:14.2]} 40. Re1
{[%clk 0:00:22.1]} 40... Bxe4 {[%clk 0:00:06.9]} 41. Qxe4+ {[%clk 0:00:21.5]}
41... Kh8 {[%clk 0:00:07.3]} 42. Ra8+ {[%clk 0:00:19.9]} 42... Rd8 {[%clk
0:00:05.7]} 43. Rxd8+ {[%clk 0:00:18.4]} 43... Bxd8 {[%clk 0:00:06.6]} 44. Qxe5
{[%clk 0:00:18.4]} 44... Qxe5 {[%clk 0:00:06.6]} 45. Rxe5 {[%clk 0:00:17.4]}
45... Bf6 {[%clk 0:00:07.5]} 46. Rc5 {[%clk 0:00:16.7]} 46... Kg8 {[%clk
0:00:07.6]} 47. b5 {[%clk 0:00:15.9]} 47... Kf7 {[%clk 0:00:08.5]} 48. b6 {[%clk
0:00:15.6]} 48... Ke7 {[%clk 0:00:09.4]} 49. b7 {[%clk 0:00:15.7]} 49... Kd7
{[%clk 0:00:09.4]} 50. b8=Q {[%clk 0:00:15.4]} 50... Be7 {[%clk 0:00:10.3]} 51.
Qc8+ {[%clk 0:00:15.8]} 51... Kd6 {[%clk 0:00:09.9]} 52. Qc6# {[%clk 0:00:16.3]}
1-0

[Event "*** SCC Grand Prix: Titled Tuesday Blitz"]
[Site "Chess.com"]
[Date "2020.10.06"]
[Round "4"]
[White "brunomorado"]
[Black "secretsuperstar7"]
[Result "1-0"]
[WhiteElo "2441"]
[BlackElo "2258"]
[TimeControl "180+1"]
[EndTime "10:39:26 PDT"]
[Termination "brunomorado won by resignation"]

1. d4 {[%clk 0:03:00]} 1... Nf6 {[%clk 0:02:59.4]} 2. Nc3 {[%clk 0:03:00.9]}
2... d5 {[%clk 0:02:58.4]} 3. Bg5 {[%clk 0:03:01.2]} 3... e6 {[%clk 0:02:50.2]}
4. e4 {[%clk 0:03:01]} 4... dxe4 {[%clk 0:02:50]} 5. Nxe4 {[%clk 0:03:01.9]}
5... Be7 {[%clk 0:02:49.3]} 6. Bxf6 {[%clk 0:03:02.2]} 6... Bxf6 {[%clk
0:02:48.8]} 7. Ne2 {[%clk 0:03:02.6]} 7... Nd7 {[%clk 0:02:42.7]} 8. g3 {[%clk
0:03:02.4]} 8... Nb6 {[%clk 0:02:40.2]} 9. Bg2 {[%clk 0:03:01.9]} 9... O-O
{[%clk 0:02:39.4]} 10. O-O {[%clk 0:03:01.7]} 10... c6 {[%clk 0:02:38.9]} 11. c3
{[%clk 0:02:59.6]} 11... e5 {[%clk 0:02:34.3]} 12. Qc2 {[%clk 0:02:42.3]} 12...
exd4 {[%clk 0:02:30.4]} 13. Nxf6+ {[%clk 0:02:41.5]} 13... Qxf6 {[%clk
0:02:29.7]} 14. Nxd4 {[%clk 0:02:41.8]} 14... Be6 {[%clk 0:02:19.6]} 15. Nxe6
{[%clk 0:02:34.3]} 15... Qxe6 {[%clk 0:02:15.3]} 16. Rfe1 {[%clk 0:02:33.5]}
16... Qc4 {[%clk 0:02:14.2]} 17. Re7 {[%clk 0:02:21.1]} 17... Rae8 {[%clk
0:02:04]} 18. Bf1 {[%clk 0:02:04.4]} 18... Qc5 {[%clk 0:01:58.1]} 19. Rxb7
{[%clk 0:02:03.2]} 19... Nc4 {[%clk 0:01:43.8]} 20. b4 {[%clk 0:01:50.4]} 20...
Qd5 {[%clk 0:01:36.5]} 21. Rd1 {[%clk 0:01:44.3]} 21... Qe6 {[%clk 0:01:35.7]}
22. Rxa7 {[%clk 0:01:41]} 22... Rd8 {[%clk 0:01:28.1]} 23. Rxd8 {[%clk
0:01:19.9]} 23... Rxd8 {[%clk 0:01:24.5]} 24. Bxc4 {[%clk 0:01:04.6]} 24... Qxc4
{[%clk 0:01:18.3]} 25. Qd2 {[%clk 0:01:03.6]} 25... Re8 {[%clk 0:01:07.4]} 26.
Re7 {[%clk 0:00:45.9]} 26... Ra8 {[%clk 0:00:55.9]} 27. a4 {[%clk 0:00:45.5]}
27... h6 {[%clk 0:00:53.1]} 28. a5 {[%clk 0:00:42.3]} 28... c5 {[%clk
0:00:49.1]} 29. Rc7 {[%clk 0:00:40.9]} 29... Re8 {[%clk 0:00:39]} 30. Rxc5
{[%clk 0:00:40.5]} 30... Qg4 {[%clk 0:00:37.2]} 31. Rd5 {[%clk 0:00:32.8]} 31...
Re2 {[%clk 0:00:29.6]} 32. Qd3 {[%clk 0:00:20.5]} 32... Re1+ {[%clk 0:00:22.8]}
33. Kg2 {[%clk 0:00:20.2]} 33... g6 {[%clk 0:00:10.8]} 34. Rd8+ {[%clk 0:00:20]}
34... Kg7 {[%clk 0:00:10.8]} 35. Qd4+ {[%clk 0:00:20.1]} 35... Qxd4 {[%clk
0:00:09.7]} 36. Rxd4 {[%clk 0:00:21]} 36... Rc1 {[%clk 0:00:09.2]} 37. Rc4
{[%clk 0:00:20.8]} 37... Kf6 {[%clk 0:00:08.2]} 38. a6 {[%clk 0:00:20.9]} 38...
Ra1 {[%clk 0:00:07.4]} 39. Rc6+ {[%clk 0:00:21.2]} 39... Ke7 {[%clk 0:00:07.5]}
40. b5 {[%clk 0:00:22.1]} 40... Kd7 {[%clk 0:00:07.9]} 41. c4 {[%clk 0:00:22.3]}
41... Ra4 {[%clk 0:00:07]} 42. c5 {[%clk 0:00:22.5]} 42... Ra5 {[%clk
0:00:06.3]} 43. Rb6 {[%clk 0:00:22]} 43... Kc7 {[%clk 0:00:06.1]} 44. Rb7+
{[%clk 0:00:22.4]} 44... Kc8 {[%clk 0:00:06.4]} 45. c6 {[%clk 0:00:22.8]} 45...
f5 {[%clk 0:00:05.2]} 46. a7 {[%clk 0:00:23]} 46... g5 {[%clk 0:00:04.9]} 47.
Rb8+ {[%clk 0:00:22.6]} 47... Kc7 {[%clk 0:00:05.5]} 48. a8=Q {[%clk 0:00:23.5]}
48... Rxa8 {[%clk 0:00:05]} 49. Rxa8 {[%clk 0:00:24.4]} 49... h5 {[%clk
0:00:05.5]} 50. Ra7+ {[%clk 0:00:23.8]} 50... Kc8 {[%clk 0:00:04.9]} 51. c7
{[%clk 0:00:24.7]} 1-0

[Event "*** SCC Grand Prix: Titled Tuesday Blitz"]
[Site "Chess.com"]
[Date "2020.10.06"]
[Round "4"]
[White "Kaslask"]
[Black "AlexSuv"]
[Result "1-0"]
[WhiteElo "2341"]
[BlackElo "2494"]
[TimeControl "180+1"]
[EndTime "10:39:27 PDT"]
[Termination "Kaslask won on time"]

1. d4 {[%clk 0:03:00.9]} 1... Nf6 {[%clk 0:02:59.8]} 2. c4 {[%clk 0:03:00.5]}
2... e6 {[%clk 0:03:00.4]} 3. Nf3 {[%clk 0:03:00.3]} 3... d5 {[%clk 0:03:00.1]}
4. Nc3 {[%clk 0:02:59.2]} 4... Bb4 {[%clk 0:03:00]} 5. Bg5 {[%clk 0:02:54.5]}
5... h6 {[%clk 0:02:59.3]} 6. Bxf6 {[%clk 0:02:52.4]} 6... Qxf6 {[%clk
0:03:00.2]} 7. e3 {[%clk 0:02:51.2]} 7... c6 {[%clk 0:02:59.4]} 8. Rc1 {[%clk
0:02:50.8]} 8... O-O {[%clk 0:02:57.4]} 9. Bd3 {[%clk 0:02:48.4]} 9... Nd7
{[%clk 0:02:55.4]} 10. O-O {[%clk 0:02:44.7]} 10... dxc4 {[%clk 0:02:55.2]} 11.
Bxc4 {[%clk 0:02:43.8]} 11... e5 {[%clk 0:02:53.8]} 12. Ne4 {[%clk 0:02:38.6]}
12... Qe7 {[%clk 0:02:46.9]} 13. a3 {[%clk 0:02:35.8]} 13... exd4 {[%clk
0:02:22]} 14. Qxd4 {[%clk 0:02:31.9]} 14... Ba5 {[%clk 0:02:19.1]} 15. Nd6
{[%clk 0:02:27.3]} 15... Bb6 {[%clk 0:02:16]} 16. Qd2 {[%clk 0:02:17]} 16... Nf6
{[%clk 0:02:13.1]} 17. Nxc8 {[%clk 0:02:09.6]} 17... Raxc8 {[%clk 0:02:14]} 18.
Rfd1 {[%clk 0:02:06.7]} 18... Rcd8 {[%clk 0:02:12.1]} 19. Qc2 {[%clk 0:02:05.4]}
19... Ne4 {[%clk 0:01:42.1]} 20. Rxd8 {[%clk 0:02:02.2]} 20... Rxd8 {[%clk
0:01:41.4]} 21. Re1 {[%clk 0:01:29.6]} 21... Bc7 {[%clk 0:01:11.1]} 22. g3
{[%clk 0:01:26.1]} 22... Re8 {[%clk 0:01:08.4]} 23. Nd2 {[%clk 0:01:20.7]} 23...
Ng5 {[%clk 0:01:03.7]} 24. f4 {[%clk 0:01:14.6]} 24... Ne6 {[%clk 0:00:56.9]}
25. Nf3 {[%clk 0:01:12.2]} 25... Bb6 {[%clk 0:00:54.8]} 26. Kg2 {[%clk
0:01:10.4]} 26... Kh8 {[%clk 0:00:41.9]} 27. Qf5 {[%clk 0:01:09.5]} 27... Bc7
{[%clk 0:00:23.3]} 28. e4 {[%clk 0:01:00.9]} 28... Rd8 {[%clk 0:00:20.9]} 29.
Re2 {[%clk 0:00:59.5]} 29... b5 {[%clk 0:00:20.2]} 30. Ba2 {[%clk 0:00:58.1]}
30... a6 {[%clk 0:00:19.7]} 31. Nh4 {[%clk 0:00:57.8]} 31... Kg8 {[%clk
0:00:18.2]} 32. Ng6 {[%clk 0:00:53.9]} 32... Qe8 {[%clk 0:00:18.7]} 33. Ne5
{[%clk 0:00:52.8]} 33... Bxe5 {[%clk 0:00:18.5]} 34. Qxe5 {[%clk 0:00:51.7]}
34... Qd7 {[%clk 0:00:17.5]} 35. f5 {[%clk 0:00:49.2]} 35... Nd4 {[%clk
0:00:17.4]} 36. Rf2 {[%clk 0:00:47.2]} 36... Re8 {[%clk 0:00:16]} 37. Qf4 {[%clk
0:00:45.8]} 37... c5 {[%clk 0:00:16.5]} 38. f6 {[%clk 0:00:44.9]} 38... Ne6
{[%clk 0:00:14.4]} 39. Qg4 {[%clk 0:00:42.7]} 39... c4 {[%clk 0:00:08.2]} 40. b3
{[%clk 0:00:37.5]} 40... Qd4 {[%clk 0:00:08.1]} 41. bxc4 {[%clk 0:00:36.2]}
41... bxc4 {[%clk 0:00:09]} 42. Rc2 {[%clk 0:00:33.7]} 42... Ng5 {[%clk
0:00:08.5]} 43. Bxc4 {[%clk 0:00:30.4]} 43... Rxe4 {[%clk 0:00:08.6]} 44. Qc8+
{[%clk 0:00:20]} 44... Kh7 {[%clk 0:00:08.9]} 45. Qf5+ {[%clk 0:00:17.5]} 45...
g6 {[%clk 0:00:08.2]} 46. Qf2 {[%clk 0:00:16.3]} 46... Qxf2+ {[%clk 0:00:06.6]}
47. Kxf2 {[%clk 0:00:14.7]} 47... Rd4 {[%clk 0:00:05]} 48. h4 {[%clk 0:00:13.6]}
48... Ne4+ {[%clk 0:00:03.1]} 49. Ke3 {[%clk 0:00:13.5]} 1-0

[Event "*** SCC Grand Prix: Titled Tuesday Blitz"]
[Site "Chess.com"]
[Date "2020.10.06"]
[Round "4"]
[White "kuban1991"]
[Black "Iskusnyh"]
[Result "0-1"]
[WhiteElo "2808"]
[BlackElo "2571"]
[TimeControl "180+1"]
[EndTime "10:39:28 PDT"]
[Termination "Iskusnyh won on time"]

1. Nf3 {[%clk 0:03:00.9]} 1... c5 {[%clk 0:02:59.3]} 2. g3 {[%clk 0:03:01.4]}
2... g6 {[%clk 0:02:59.2]} 3. Bg2 {[%clk 0:03:02.3]} 3... Bg7 {[%clk 0:02:59.1]}
4. O-O {[%clk 0:03:03.2]} 4... Nc6 {[%clk 0:02:58.8]} 5. c4 {[%clk 0:03:03.8]}
5... d6 {[%clk 0:02:58.7]} 6. Nc3 {[%clk 0:03:04.4]} 6... e6 {[%clk 0:02:58.6]}
7. b3 {[%clk 0:03:03.4]} 7... Nge7 {[%clk 0:02:58.1]} 8. e3 {[%clk 0:03:03.6]}
8... e5 {[%clk 0:02:41.7]} 9. Bb2 {[%clk 0:02:58.4]} 9... O-O {[%clk 0:02:40.3]}
10. d3 {[%clk 0:02:50.1]} 10... h6 {[%clk 0:02:36.7]} 11. a3 {[%clk 0:02:49.5]}
11... Bg4 {[%clk 0:02:31.2]} 12. h3 {[%clk 0:02:49.1]} 12... Be6 {[%clk
0:02:30.6]} 13. Nd2 {[%clk 0:02:35.9]} 13... Qd7 {[%clk 0:02:28.5]} 14. Kh2
{[%clk 0:02:35]} 14... d5 {[%clk 0:02:27.9]} 15. Qe2 {[%clk 0:02:27.1]} 15... d4
{[%clk 0:02:21.1]} 16. Na4 {[%clk 0:02:17.5]} 16... b6 {[%clk 0:02:19.9]} 17.
exd4 {[%clk 0:02:05.5]} 17... exd4 {[%clk 0:02:18.5]} 18. b4 {[%clk 0:02:03.5]}
18... Ne5 {[%clk 0:01:43.2]} 19. b5 {[%clk 0:01:31.7]} 19... Qc7 {[%clk
0:00:51.9]} 20. Bxa8 {[%clk 0:01:16.7]} 20... Rxa8 {[%clk 0:00:50.4]} 21. Nf3
{[%clk 0:01:15.2]} 21... Nd7 {[%clk 0:00:44.7]} 22. Bc1 {[%clk 0:01:14.1]} 22...
g5 {[%clk 0:00:41.8]} 23. Bxg5 {[%clk 0:01:00]} 23... hxg5 {[%clk 0:00:40.5]}
24. Nxg5 {[%clk 0:01:00.9]} 24... Qe5 {[%clk 0:00:33.9]} 25. Qf3 {[%clk
0:00:42.5]} 25... Rf8 {[%clk 0:00:32.2]} 26. h4 {[%clk 0:00:30.7]} 26... Qd6
{[%clk 0:00:25.1]} 27. Rae1 {[%clk 0:00:30.2]} 27... Ne5 {[%clk 0:00:24]} 28.
Qh5 {[%clk 0:00:23.4]} 28... Bf5 {[%clk 0:00:23.5]} 29. Nb2 {[%clk 0:00:17.5]}
29... Qg6 {[%clk 0:00:22.3]} 30. Qxg6 {[%clk 0:00:17.4]} 30... N7xg6 {[%clk
0:00:21.1]} 31. Ne4 {[%clk 0:00:16.1]} 31... Nf3+ {[%clk 0:00:20.2]} 32. Kg2
{[%clk 0:00:15.6]} 32... Nxe1+ {[%clk 0:00:20.3]} 33. Rxe1 {[%clk 0:00:16.5]}
33... Ne5 {[%clk 0:00:20]} 34. f3 {[%clk 0:00:14.1]} 34... Ra8 {[%clk
0:00:17.9]} 35. a4 {[%clk 0:00:12.9]} 35... a6 {[%clk 0:00:17.4]} 36. g4 {[%clk
0:00:13.5]} 36... Be6 {[%clk 0:00:16.8]} 37. Kg3 {[%clk 0:00:10.2]} 37... axb5
{[%clk 0:00:16.6]} 38. cxb5 {[%clk 0:00:11.1]} 38... c4 {[%clk 0:00:15.9]} 39.
dxc4 {[%clk 0:00:09]} 39... Nxc4 {[%clk 0:00:15.5]} 40. Nxc4 {[%clk 0:00:06.4]}
40... Bxc4 {[%clk 0:00:15.3]} 41. Nd6 {[%clk 0:00:06.6]} 41... Be6 {[%clk
0:00:14.7]} 42. f4 {[%clk 0:00:07]} 42... Rxa4 {[%clk 0:00:13.6]} 43. f5 {[%clk
0:00:07.5]} 43... Bd5 {[%clk 0:00:13.3]} 44. g5 {[%clk 0:00:04.6]} 44... d3
{[%clk 0:00:11.4]} 45. f6 {[%clk 0:00:03.1]} 45... Bf8 {[%clk 0:00:11.2]} 0-1